fUSD/lending_fUSD_20240925
["ID","MTS","AMOUNT","RATE_DAILY","PERIOD"]
[339172581,1727274631922,-5284.16,0.00012405,2]
[339172582,1727274631931,-167.1,0.00012445,2]
[339172583,1727274631940,-8510.0,0.00012463,7]
[339172584,1727274631949,-152.0,0.00012481,8]
[339172585,1727274631959,-152.0,0.00012628,9]
[339172586,1727274631968,-151.0,0.00012634,2]
[339172587,1727274631978,-413.15727776,0.00012675,2]
[339172588,1727274631987,-9181.63595937,0.00012683,2]
[339172589,1727274632025,-1454.17739704,0.00012683,2]
[339172590,1727274632038,-5570.05797246,0.00012683,2]
[339172591,1727274632047,-150.0,0.00012683,2]
[339172592,1727274632056,-222.0,0.00012704,2]
[339172593,1727274632065,-13494.80404742,0.00012705,2]
[339172594,1727274632077,-14838.85195258,0.00012705,2]
[339172595,1727274632086,-16205.87132883,0.00012707,2]
[339172596,1727274632095,-300.0,0.00012727,2]
[339172597,1727274632104,-150.0,0.0001273,2]
[339172598,1727274632114,-16205.87132883,0.00012731,2]
[339172599,1727274632123,-150.0,0.00012733,2]
[339172600,1727274632132,-150.0,0.00012736,2]
[339172601,1727274632141,-150.0,0.00012738,2]
[339172602,1727274632150,-150.0,0.00012739,2]
[339172603,1727274632159,-150.0,0.00012739,2]
[339172604,1727274632168,-150.0,0.00012741,2]
[339172605,1727274632177,-150.0,0.00012743,2]
[339172606,1727274632187,-150.0,0.00012746,2]
[339172607,1727274632195,-150.0,0.00012751,2]
[339172608,1727274632204,-150.0,0.00012752,2]
[339172609,1727274632215,-150.0,0.00012752,2]
[339172610,1727274632224,-150.0,0.00012753,2]
[339172611,1727274632233,-16205.87132883,0.00012755,2]
[339172612,1727274632242,-150.0,0.00012756,2]
[339172613,1727274632251,-150.0,0.00012757,2]
[339172614,1727274632260,-150.0,0.00012758,2]
[339172615,1727274632270,-150.0,0.0001276,2]
[339172616,1727274632279,-150.0,0.00012765,2]
[339172617,1727274632288,-150.0,0.00012767,2]
[339172618,1727274632298,-150.0,0.00012769,2]
[339172619,1727274632307,-336.04748373,0.0001277,2]
[339172621,1727274632316,-325.35261186,0.0001277,2]
[339172623,1727274632325,-150.0,0.00012771,2]
[339172625,1727274632335,-150.0,0.00012773,2]
[339172627,1727274632345,-150.0,0.00012774,2]
[339172628,1727274632354,-152.0,0.00012775,10]
[339172630,1727274632363,-150.0,0.00012779,2]
[339172632,1727274632373,-150.0,0.00012779,2]
[339172633,1727274632382,-16205.87132883,0.00012779,2]
[339172634,1727274632391,-94615.6626365,0.0001278,2]
[339172637,1727274632403,-3186.53480063,0.0001278,2]
[339172642,1727274632446,-6036.6456329,0.0001278,2]
[339172644,1727274632458,-752.17210597,0.0001278,2]
[339172647,1727274632471,-404.0,0.0001278,2]
[339172649,1727274632483,-33357.3475157,0.0001278,2]
[339172651,1727274632492,-150.0,0.00012783,2]
[339172653,1727274632501,-1000.0,0.00012784,2]
[339172655,1727274632512,-336.04748371,0.00012789,2]
[339172657,1727274632521,-17976.60500059,0.00012791,2]
[339172659,1727274632532,-845.87545876,0.00012791,2]
[339172661,1727274632543,-1028.79,0.00012791,2]
[339172663,1727274632555,-402.08665195,0.00012791,2]
[339172666,1727274632566,-474.2509887,0.00012791,2]
[339172668,1727274632576,-689.2802,0.00012794,2]
[339172670,1727274632585,-3343.53245043,0.00012794,2]
[339172672,1727274632596,-406.46096392,0.00012794,2]
[339172675,1727274632616,-555.249,0.00012794,2]
[339172677,1727274632628,-1249.78872132,0.00012794,2]
[339172679,1727274632639,-1674.56555788,0.00012794,2]
[339172681,1727274632650,-270.40330645,0.00012794,2]
[339172708,1727274632904,-500.0,0.00012794,2]
[339172710,1727274632915,-150.0,0.00012795,2]
[339172712,1727274632925,-150.0,0.00012796,2]
[339172714,1727274632935,-3918.16145594,0.00012797,2]
[339172716,1727274632944,-2788.33472328,0.00012798,2]
[339172720,1727274632979,-588.36553849,0.00012798,2]
[339172723,1727274632990,-3569.83964509,0.00012798,2]
[339172725,1727274633001,-2361.4817144,0.00012798,2]
[339172726,1727274633010,-1002.48,0.000128,2]
[339172728,1727274633021,-150.0,0.00012802,2]
[339172730,1727274633031,-5240.18809853,0.00012804,2]
[339172732,1727274633044,-9669.50989184,0.00012804,2]
[339172738,1727274638654,1500.00351137,0.00022,120]
[339172739,1727274639065,-150.0,0.0001273,2]
[339172740,1727274639075,-150.0,0.00012748,2]
[339172741,1727274639084,-150.0,0.00012749,2]
[339172742,1727274639097,-150.0,0.0001275,2]
[339172743,1727274639106,-150.0,0.00012752,2]
[339172744,1727274639115,-150.0,0.00012763,2]
[339172745,1727274639122,-150.0,0.00012774,2]
[339172746,1727274639131,-150.0,0.00012783,2]
[339172747,1727274639141,-1296.17333846,0.00012804,2]
[339172748,1727274639150,-150.0,0.00012804,2]
[339172749,1727274639159,-150.0,0.00012804,2]
[339172750,1727274639168,-150.0,0.00012805,2]
[339172751,1727274639177,-336.04748371,0.00012807,2]
[339172752,1727274639186,-150.0,0.00012813,2]
[339172753,1727274639195,-150.0,0.00012813,2]
[339172754,1727274639204,-226.635,0.00012815,2]
[339172755,1727274639213,-150.0,0.00012815,2]
[339172756,1727274639225,-1444.48711263,0.00012815,2]
[339172757,1727274639235,-2565.0,0.00012815,2]
[339172758,1727274639246,-659.2,0.00012815,2]
[339172759,1727274639256,-583.70988737,0.00012815,2]
[339172760,1727274639265,-266.509,0.00012815,2]
[339172761,1727274639277,-581.8,0.00012815,2]
[339172762,1727274639286,-158.383,0.00012815,2]
[339172763,1727274639295,-150.0,0.00012815,2]
[339172764,1727274639304,-150.0,0.00012817,2]
[339172765,1727274639313,-150.0,0.00012819,2]
[339172766,1727274639323,-150.0,0.0001282,2]
[339172767,1727274639332,-150.0,0.00012821,2]
[339172768,1727274639341,-500.0,0.00012822,2]
[339172769,1727274639350,-500.0,0.00012822,2]
[339172770,1727274639360,-150.0,0.00012825,2]
[339172771,1727274639369,-336.04748371,0.00012826,2]
[339172772,1727274639378,-150.0,0.00012827,2]
[339172773,1727274639387,-16205.87132883,0.00012828,2]
[339172774,1727274639396,-150.0,0.0001283,2]
[339172775,1727274639405,-150.0,0.00012833,2]
[339172776,1727274639415,-150.0,0.00012838,2]
[339172777,1727274639424,-150.0,0.0001284,2]
[339172778,1727274639432,-336.04748371,0.00012844,2]
[339172779,1727274639442,-150.0,0.00012845,2]
[339172780,1727274639451,-150.0,0.00012848,2]
[339172781,1727274639460,-150.0,0.00012849,2]
[339172782,1727274639473,-150.0,0.0001285,2]
[339172783,1727274639482,-150.0,0.0001285,2]
[339172784,1727274639492,-150.0,0.00012851,2]
[339172785,1727274639501,-1549.87935561,0.00012852,2]
[339172786,1727274639513,-1489.18453252,0.00012852,2]
[339172787,1727274639528,-720.62291816,0.00012852,2]
[339172788,1727274639540,-3100.0,0.00012852,2]
[339172789,1727274639551,-9346.18452254,0.00012852,2]
[339172790,1727274639560,-150.0,0.00012854,2]
[339172791,1727274639569,-150.0,0.00012854,2]
[339172792,1727274639578,-150.0,0.00012858,2]
[339172793,1727274639587,-336.04748371,0.00012863,2]
[339172794,1727274639597,-150.0,0.00012863,2]
[339172795,1727274639606,-150.0,0.00012864,2]
[339172796,1727274639615,-150.0,0.00012864,2]
[339172798,1727274639624,-150.0,0.00012865,2]
[339172799,1727274639634,-150.0,0.00012865,2]
[339172800,1727274639642,-16.40509371,0.00012867,2]
[339172802,1727274639669,-133.59490629,0.00012867,2]
[339172803,1727274639678,-171.0233313,0.0001287,2]
[339172804,1727274639688,-597.53439559,0.0001287,2]
[339172805,1727274639699,-5925.701,0.0001287,2]
[339172806,1727274639709,-2564.7511365,0.0001287,2]
[339172807,1727274639721,-585.41820824,0.0001287,2]
[339172808,1727274639737,-150.0,0.00012819,2]
[339172809,1727274639747,-244.12782113,0.0001287,2]
[339172810,1727274639759,-2709.94494954,0.0001287,2]
[339172811,1727274639769,-5197.57096875,0.0001287,2]
[339172812,1727274639781,-4583.2606,0.0001287,2]
[339172813,1727274639792,-590.62314607,0.0001287,2]
[339172814,1727274639803,-19584.17613878,0.0001287,2]
[339172815,1727274639814,-1879.79073718,0.0001287,2]
[339172816,1727274639830,-845.57482597,0.0001287,2]
[339172817,1727274639978,-150.0,0.00012809,2]
[339172818,1727274639988,-150.0,0.00012811,2]
[339172819,1727274639997,-150.0,0.00012814,2]
[339172820,1727274640006,-150.0,0.00012816,2]
[339172821,1727274640015,-150.0,0.00012824,2]
[339172822,1727274640029,-4788.54899814,0.0001287,2]
[339172823,1727274640042,-338.805,0.0001287,2]
[339172824,1727274640054,-588.209208,0.0001287,2]
[339172825,1727274640065,-9136.42063367,0.0001287,2]
[339172826,1727274640088,-1368.05667035,0.0001287,2]
[339172828,1727274640099,-533.82,0.0001287,2]
[339172830,1727274640112,-11197.2911627,0.0001287,2]
[339172832,1727274640121,-1814.83153809,0.0001287,2]
[339172834,1727274640133,-171.07325059,0.0001287,2]
[339172836,1727274640142,-160.42587708,0.00012873,2]
[339172837,1727274640153,-194.82412023,0.00012873,2]
[339172838,1727274640163,-540.18499266,0.00012873,2]
[339172839,1727274640173,-160.0,0.00012873,2]
[339172840,1727274640183,-500.0,0.00012873,2]
[339172842,1727274640192,-160.65978654,0.00012873,2]
[339172843,1727274640201,-160.42565925,0.00012873,2]
[339172844,1727274640210,-500.0,0.00012873,2]
[339172845,1727274640220,-500.0,0.00012873,2]
[339172846,1727274640229,-500.0,0.00012873,2]
[339172847,1727274640241,-400.38227572,0.00012873,2]
[339172848,1727274640249,-500.0,0.00012873,2]
[339172849,1727274640259,-150.0,0.00012874,2]
[339172850,1727274640268,-150.0,0.00012874,2]
[339172852,1727274640277,-151.79,0.00012874,2]
[339172854,1727274640287,-150.0,0.00012875,2]
[339172856,1727274640296,-3355.99393693,0.00012876,2]
[339172858,1727274640308,-9837.1995,0.00012876,2]
[339172860,1727274640319,-3012.6778919,0.00012876,2]
[339172862,1727274640329,-500.0,0.00012876,2]
[339172864,1727274640338,-500.0,0.00012876,2]
[339172866,1727274640347,-500.0,0.00012876,2]
[339172868,1727274640357,-538.95,0.00012876,2]
[339172870,1727274640366,-500.0,0.00012876,2]
[339172872,1727274640375,-186.96380874,0.00012876,2]
[339172874,1727274640384,-594.7,0.00012876,2]
[339172876,1727274640393,-1318.62411111,0.00012876,2]
[339172878,1727274640404,-1994.5,0.00012876,2]
[339172880,1727274640415,-10206.19588889,0.00012876,2]
[339172882,1727274640424,-620.85473117,0.00012876,2]
[339172884,1727274640433,-500.0,0.00012876,2]
[339172886,1727274640442,-500.0,0.00012876,2]
[339172887,1727274640451,-500.0,0.00012876,2]
[339172889,1727274640460,-500.0,0.00012876,2]
[339172891,1727274640471,-500.0,0.00012876,2]
[339172893,1727274640480,-500.0,0.00012876,2]
[339172895,1727274640489,-500.0,0.00012876,2]
[339172897,1727274640499,-500.0,0.00012876,2]
[339172899,1727274640508,-500.0,0.00012876,2]
[339172901,1727274640517,-500.0,0.00012876,2]
[339172903,1727274640526,-500.0,0.00012876,2]
[339172905,1727274640536,-500.0,0.00012876,2]
[339172907,1727274640545,-500.0,0.00012876,2]
[339172909,1727274640554,-500.0,0.00012876,2]
[339172911,1727274640562,-837.81,0.00012876,2]
[339172912,1727274640571,-837.81,0.00012876,2]
[339172914,1727274640580,-500.0,0.00012876,2]
[339172916,1727274640589,-500.0,0.00012876,2]
[339172918,1727274640598,-500.0,0.00012876,2]
[339172920,1727274640607,-500.0,0.00012876,2]
[339172922,1727274640616,-500.0,0.00012876,2]
[339172924,1727274640625,-500.0,0.00012876,2]
[339172926,1727274640635,-500.0,0.00012876,2]
[339172928,1727274640644,-500.0,0.00012876,2]
[339172930,1727274640653,-500.0,0.00012876,2]
[339172932,1727274640662,-150.0,0.00012876,2]
[339172934,1727274640670,-150.0,0.00012877,2]
[339172936,1727274640679,-150.0,0.00012878,2]
[339172937,1727274640688,-386.87063074,0.0001288,2]
[339172939,1727274640697,-336.04748371,0.00012881,2]
[339172941,1727274640706,-151.79,0.00012884,2]
[339172943,1727274640717,-500.0,0.00012884,2]
[339172945,1727274640726,-500.0,0.00012884,2]
[339172947,1727274640735,-500.0,0.00012884,2]
[339172949,1727274640745,-944.43668917,0.00012884,2]
[339172973,1727274640978,-278.90148228,0.00012884,2]
[339172975,1727274640989,-3177.52182855,0.00012884,2]
[339172977,1727274640999,-500.0,0.00012884,2]
[339172979,1727274641008,-929.9,0.00012884,2]
[339172981,1727274641019,-500.0,0.00012884,2]
[339172983,1727274641029,-1739.25,0.00012884,2]
[339172985,1727274641038,-766.85,0.00012884,2]
[339173005,1727274641236,-500.0,0.00012884,2]
[339173007,1727274641246,-500.0,0.00012884,2]
[339173009,1727274641255,-640.39,0.00012884,2]
[339173011,1727274641263,-500.0,0.00012884,2]
[339173013,1727274641272,-500.0,0.00012884,2]
[339173015,1727274641281,-500.0,0.00012884,2]
[339173017,1727274641290,-500.0,0.00012884,2]
[339173019,1727274641299,-500.0,0.00012884,2]
[339173021,1727274641308,-844.16,0.00012884,2]
[339173022,1727274641317,-500.0,0.00012884,2]
[339173024,1727274641325,-500.0,0.00012884,2]
[339173026,1727274641333,-500.0,0.00012884,2]
[339173028,1727274641342,-500.0,0.00012884,2]
[339173030,1727274641351,-500.0,0.00012884,2]
[339173032,1727274641360,-2130.67,0.00012884,2]
[339173034,1727274641369,-2545.78,0.00012884,2]
[339173035,1727274641377,-500.0,0.00012884,2]
[339173037,1727274641386,-500.0,0.00012884,2]
[339173039,1727274641395,-500.0,0.00012884,2]
[339173041,1727274641404,-500.0,0.00012884,2]
[339173043,1727274641413,-500.0,0.00012884,2]
[339173045,1727274641422,-500.0,0.00012884,2]
[339173047,1727274641431,-500.0,0.00012884,2]
[339173049,1727274641440,-500.0,0.00012884,2]
[339173051,1727274641449,-500.0,0.00012884,2]
[339173053,1727274641460,-500.0,0.00012884,2]
[339173055,1727274641474,-500.0,0.00012884,2]
[339173057,1727274641484,-500.0,0.00012884,2]
[339173059,1727274641493,-500.0,0.00012884,2]
[339173061,1727274641502,-500.0,0.00012884,2]
[339173062,1727274641511,-500.0,0.00012884,2]
[339173064,1727274641521,-500.0,0.00012884,2]
[339173066,1727274641530,-500.0,0.00012884,2]
[339173068,1727274641539,-408.36,0.00012884,2]
[339173070,1727274641548,-500.0,0.00012884,2]
[339173072,1727274641559,-613.69,0.00012884,2]
[339173074,1727274641569,-722.89,0.00012884,2]
[339173076,1727274641578,-500.0,0.00012884,2]
[339173078,1727274641587,-500.0,0.00012884,2]
[339173080,1727274641596,-500.0,0.00012884,2]
[339173082,1727274641605,-2128.91,0.00012884,2]
[339173084,1727274641614,-500.0,0.00012884,2]
[339173086,1727274641623,-500.0,0.00012885,2]
[339173088,1727274641633,-500.0,0.00012885,2]
[339173089,1727274641642,-398.87333617,0.00012885,2]
[339173091,1727274641653,-500.0,0.00012885,2]
[339173093,1727274641662,-500.0,0.00012885,2]
[339173095,1727274641671,-500.0,0.00012885,2]
[339173097,1727274641680,-500.0,0.00012885,2]
[339173099,1727274641690,-500.0,0.00012885,2]
[339173101,1727274641699,-386.22722155,0.00012885,2]
[339173103,1727274641708,-500.0,0.00012885,2]
[339173105,1727274641717,-500.0,0.00012885,2]
[339173107,1727274641729,-500.0,0.00012885,2]
[339173108,1727274641738,-500.0,0.00012885,2]
[339173110,1727274641747,-500.0,0.00012885,2]
[339173112,1727274641757,-500.0,0.00012885,2]
[339173114,1727274641766,-500.0,0.00012885,2]
[339173116,1727274641776,-500.0,0.00012885,2]
[339173118,1727274641785,-500.0,0.00012885,2]
[339173120,1727274641795,-500.0,0.00012885,2]
[339173122,1727274641805,-500.0,0.00012885,2]
[339173124,1727274641814,-500.0,0.00012885,2]
[339173126,1727274641823,-500.0,0.00012885,2]
[339173128,1727274641833,-500.0,0.00012885,2]
[339173130,1727274641843,-500.0,0.00012885,2]
[339173131,1727274641851,-620.21,0.00012885,2]
[339173133,1727274641860,-501.47739448,0.00012885,2]
[339173134,1727274641869,-500.0,0.00012885,2]
[339173136,1727274641878,-500.0,0.00012885,2]
[339173137,1727274641887,-500.0,0.00012885,2]
[339173139,1727274641897,-537.71758906,0.00012885,2]
[339173141,1727274641906,-769.16,0.00012885,2]
[339173143,1727274641916,-500.0,0.00012885,2]
[339173145,1727274641926,-500.0,0.00012885,2]
[339173147,1727274641936,-500.0,0.00012885,2]
[339173149,1727274641945,-500.0,0.00012885,2]
[339173151,1727274641956,-500.0,0.00012885,2]
[339173153,1727274641965,-500.0,0.00012885,2]
[339173155,1727274641986,-500.0,0.00012885,2]
[339173157,1727274641996,-500.0,0.00012885,2]
[339173159,1727274642005,-500.0,0.00012885,2]
[339173161,1727274642013,-500.0,0.00012885,2]
[339173163,1727274642028,-500.0,0.00012885,2]
[339173165,1727274642037,-500.0,0.00012885,2]
[339173167,1727274642047,-500.0,0.00012885,2]
[339173169,1727274642056,-1231.59,0.00012885,2]
[339173171,1727274642065,-500.0,0.00012885,2]
[339173173,1727274642075,-500.0,0.00012885,2]
[339173175,1727274642084,-500.0,0.00012885,2]
[339173176,1727274642093,-500.0,0.00012885,2]
[339173178,1727274642103,-500.46241155,0.00012885,2]
[339173180,1727274642113,-500.0,0.00012885,2]
[339173182,1727274642123,-500.87053009,0.00012885,2]
[339173184,1727274642133,-500.39768586,0.00012885,2]
[339173185,1727274642142,-500.44062796,0.00012885,2]
[339173187,1727274642152,-400.88331592,0.00012885,2]
[339173189,1727274642161,-500.0,0.00012885,2]
[339173190,1727274642171,-500.0,0.00012885,2]
[339173191,1727274642181,-500.0,0.00012885,2]
[339173192,1727274642191,-500.0,0.00012885,2]
[339173193,1727274642200,-500.0,0.00012885,2]
[339173194,1727274642209,-500.0,0.00012885,2]
[339173195,1727274642221,-163.562847,0.00012885,2]
[339173196,1727274642233,-420.01021832,0.00012885,2]
[339173197,1727274642242,-500.0,0.00012885,2]
[339173198,1727274642251,-500.0,0.00012885,2]
[339173199,1727274642261,-500.0,0.00012885,2]
[339173200,1727274642271,-500.0,0.00012885,2]
[339173201,1727274642280,-330.58,0.00012885,2]
[339173202,1727274642289,-500.0,0.00012885,2]
[339173203,1727274642298,-500.0,0.00012885,2]
[339173204,1727274642308,-230.42719626,0.00012885,2]
[339173205,1727274642318,-500.0,0.00012885,2]
[339173206,1727274642327,-501.52265435,0.00012885,2]
[339173207,1727274642337,-501.58090773,0.00012885,2]
[339173208,1727274642346,-500.0,0.00012885,2]
[339173209,1727274642355,-513.71586108,0.00012885,2]
[339173210,1727274642364,-581.18357251,0.00012885,2]
[339173211,1727274642374,-500.0,0.00012885,2]
[339173212,1727274642383,-1163.49,0.00012885,2]
[339173213,1727274642393,-500.0,0.00012889,2]
[339173214,1727274642403,-500.0,0.00012889,2]
[339173215,1727274642413,-500.0,0.00012889,2]
[339173216,1727274642422,-500.0,0.00012889,2]
[339173217,1727274642432,-425.47006584,0.00012889,2]
[339173218,1727274642441,-500.0,0.00012889,2]
[339173219,1727274642451,-538.95,0.00012889,2]
[339173220,1727274642460,-500.0,0.00012889,2]
[339173221,1727274642474,-594.7,0.00012889,2]
[339173222,1727274642485,-13519.32,0.00012889,2]
[339173223,1727274642494,-500.0,0.00012889,2]
[339173224,1727274642504,-500.0,0.00012889,2]
[339173225,1727274642513,-500.0,0.00012889,2]
[339173226,1727274642522,-600.01,0.00012889,2]
[339173227,1727274642532,-500.0,0.00012889,2]
[339173228,1727274642541,-500.0,0.00012889,2]
[339173229,1727274642550,-500.0,0.00012889,2]
[339173230,1727274642560,-500.0,0.00012889,2]
[339173231,1727274642569,-500.0,0.00012889,2]
[339173232,1727274642578,-500.0,0.00012889,2]
[339173233,1727274642588,-837.81,0.00012889,2]
[339173234,1727274642597,-500.0,0.00012889,2]
[339173235,1727274642606,-500.0,0.00012889,2]
[339173236,1727274642615,-500.0,0.00012889,2]
[339173237,1727274642624,-500.0,0.00012889,2]
[339173238,1727274642634,-150.0,0.0001289,2]
[339173239,1727274642643,-150.0,0.0001289,2]
[339173240,1727274642652,-44520.88603095,0.0001289,2]
[339173241,1727274642662,-138523.88277707,0.0001289,3]
[339173242,1727274642671,-109782.49461379,0.0001289,2]
[339173243,1727274642681,-500.0,0.0001289,2]
[339173244,1727274642690,-500.0,0.0001289,2]
[339173245,1727274642700,-500.0,0.0001289,2]
[339173247,1727274642710,-500.0,0.0001289,2]
[339173248,1727274642722,-500.0,0.0001289,2]
[339173249,1727274642731,-538.95,0.0001289,2]
[339173250,1727274642740,-500.0,0.0001289,2]
[339173251,1727274642750,-594.7,0.0001289,2]
[339173252,1727274642759,-722.89,0.0001289,2]
[339173254,1727274642768,-13519.32,0.0001289,2]
[339173255,1727274642778,-500.0,0.0001289,2]
[339173256,1727274642787,-516.51,0.0001289,2]
[339173257,1727274642797,-307.0,0.0001289,2]
[339173258,1727274642806,-156.17,0.0001289,2]
[339173259,1727274642815,-2128.91,0.0001289,2]
[339173260,1727274642825,-520.81246956,0.0001289,2]
[339173261,1727274642834,-500.0,0.0001289,2]
[339173263,1727274642844,-500.0,0.0001289,2]
[339173265,1727274642853,-500.0,0.0001289,2]
[339173266,1727274642862,-500.0,0.0001289,2]
[339173267,1727274642872,-500.0,0.00012891,2]
[339173268,1727274642882,-500.0,0.00012891,2]
[339173269,1727274642891,-500.0,0.00012891,2]
[339173270,1727274642900,-4400.86,0.00012891,2]
[339173271,1727274642910,-500.0,0.00012891,2]
[339173272,1727274642919,-929.9,0.00012891,2]
[339173273,1727274642928,-1739.25,0.00012891,2]
[339173274,1727274642938,-766.85,0.00012891,2]
[339173275,1727274642947,-500.0,0.00012891,2]
[339173276,1727274642957,-640.39,0.00012891,2]
[339173277,1727274642966,-500.0,0.00012891,2]
[339173278,1727274642980,-500.0,0.00012891,2]
[339173279,1727274642989,-844.16,0.00012891,2]
[339173280,1727274642999,-500.0,0.00012891,2]
[339173281,1727274643009,-500.0,0.00012891,2]
[339173282,1727274643021,-500.0,0.00012891,2]
[339173283,1727274643032,-2130.67,0.00012891,2]
[339173284,1727274643042,-2545.78,0.00012891,2]
[339173285,1727274643052,-500.0,0.00012891,2]
[339173286,1727274643063,-500.0,0.00012891,2]
[339173287,1727274643073,-500.0,0.00012891,2]
[339173288,1727274643082,-500.0,0.00012891,2]
[339173289,1727274643092,-500.0,0.00012891,2]
[339173290,1727274643101,-500.0,0.00012891,2]
[339173291,1727274643110,-500.0,0.00012891,2]
[339173292,1727274643119,-500.0,0.00012891,2]
[339173293,1727274643128,-287.21,0.00012891,2]
[339173294,1727274643138,-500.0,0.00012891,2]
[339173295,1727274643147,-500.0,0.00012891,2]
[339173296,1727274643157,-500.0,0.00012891,2]
[339173297,1727274643166,-500.0,0.00012891,2]
[339173298,1727274643175,-500.0,0.00012891,2]
[339173299,1727274643185,-500.0,0.00012891,2]
[339173300,1727274643195,-150.0,0.00012893,2]
[339173301,1727274643204,-4400.86,0.00012893,2]
[339173302,1727274643214,-150.0,0.00012893,2]
[339173303,1727274643224,-929.9,0.00012893,2]
[339173304,1727274643234,-766.85,0.00012893,2]
[339173305,1727274643244,-500.0,0.00012893,2]
[339173306,1727274643253,-500.0,0.00012893,2]
[339173307,1727274643263,-532.85,0.00012893,2]
[339173308,1727274643273,-500.0,0.00012893,2]
[339173309,1727274643282,-500.0,0.00012893,2]
[339173310,1727274643292,-500.0,0.00012893,2]
[339173311,1727274643301,-500.0,0.00012893,2]
[339173312,1727274643311,-500.0,0.00012893,2]
[339173313,1727274643321,-500.0,0.00012893,2]
[339173314,1727274643330,-500.0,0.00012893,2]
[339173315,1727274643339,-500.0,0.00012893,2]
[339173316,1727274643350,-500.0,0.00012893,2]
[339173317,1727274643360,-2980.3,0.00012893,2]
[339173318,1727274643369,-500.0,0.00012893,2]
[339173319,1727274643378,-500.0,0.00012893,2]
[339173321,1727274643389,-189.91376388,0.00012893,2]
[339173322,1727274643398,-3152.38,0.00012893,2]
[339173323,1727274643407,-500.0,0.00012893,2]
[339173326,1727274643416,-500.0,0.00012893,2]
[339173328,1727274643425,-500.0,0.00012893,2]
[339173330,1727274643434,-500.0,0.00012893,2]
[339173331,1727274643444,-500.0,0.00012893,2]
[339173332,1727274643453,-500.0,0.00012893,2]
[339173333,1727274643463,-500.0,0.00012893,2]
[339173334,1727274643474,-500.0,0.00012893,2]
[339173335,1727274643483,-3889.43,0.00012893,2]
[339173336,1727274643493,-500.0,0.00012893,2]
[339173338,1727274643502,-500.0,0.00012893,2]
[339173339,1727274643512,-500.0,0.00012893,2]
[339173341,1727274643522,-500.0,0.00012893,2]
[339173343,1727274643531,-837.81,0.00012893,2]
[339173345,1727274643540,-500.0,0.00012893,2]
[339173346,1727274643551,-500.0,0.00012893,2]
[339173347,1727274643561,-500.0,0.00012893,2]
[339173348,1727274643570,-500.0,0.00012894,2]
[339173349,1727274643580,-500.0,0.00012894,2]
[339173350,1727274643589,-500.0,0.00012894,2]
[339173351,1727274643598,-500.0,0.00012894,2]
[339173352,1727274643607,-500.47509101,0.00012894,2]
[339173353,1727274643616,-500.0,0.00012894,2]
[339173354,1727274643626,-500.0,0.00012894,2]
[339173355,1727274643636,-500.0,0.00012894,2]
[339173356,1727274643645,-500.87032752,0.00012894,2]
[339173357,1727274643655,-500.35255895,0.00012894,2]
[339173358,1727274643664,-500.0,0.00012894,2]
[339173359,1727274643674,-500.0,0.00012894,2]
[339173360,1727274643683,-500.0,0.00012894,2]
[339173361,1727274643693,-500.0,0.00012894,2]